[Event "3rd FIDE WCCC Blitz U12 2019"]
[Site "Minsk"]
[Date "2019.08.18"]
[Round "4.5"]
[White "Gvozdev, Timur"]
[Black "Strybuk, Artsiom I"]
[Result "0-1"]
[ECO "C67"]
[WhiteElo "1518"]
[BlackElo "2200"]
[Annotator "NA"]
[PlyCount "119"]
[EventDate "2019.08.18"]
[EventType "swiss"]
[EventCountry "BLR"]
[SourceTitle "playchess.com"]
[Source "ChessBase"]
[SourceQuality "1"]
[TimeControl "300+2"]

1. e4 {[%emt 0:00:00]} e5 {[%emt 0:00:00]} 2. Nf3 {[%emt 0:00:02]} Nc6 {[%emt 0:00:00]} 3. Bb5 {[%emt 0:00:02]} Nf6 {[%emt 0:00:01]} 4. O-O {[%emt 0:00:02]} Nxe4 {[%emt 0:00:01]} 5. d4 {[%emt 0:00:05]} Nd6 {[%emt 0:00:02]} 6. dxe5 {[%emt 0:00:18]} Nxb5 {[%emt 0:00:01]} 7. a4 {[%emt 0:00:02]} Nbd4 {[%emt 0:00:01]} 8. Nxd4 {[%emt 0:00:05]} d5 {[%emt 0:00:51]} 9. Re1 {[%emt 0:00:30]} Be7 {[%emt 0:00:14]} 10. c3 {[%emt 0:00:30]} O-O {[%emt 0:00:04]} 11. Nd2 {[%emt 0:00:14]} f6 {[%emt 0:00:41]} 12. exf6 {[%emt 0:00:55]} Bxf6 {[%emt 0:00:02]} 13. Nxc6 {[%emt 0:00:12]} bxc6 {[%emt 0:00:02]} 14. Nb3 {[%emt 0:00:12]} Bf5 {[%emt 0:00:41]} 15. Be3 {[%emt 0:00:30]} Qd7 {[%emt 0:00:33]} 16. Nc5 {[%emt 0:00:15]} Qd6 {[%emt 0:00:12]} 17. Bd4 {[%emt 0:00:22]} Rae8 {[%emt 0:00:34]} 18. Qd2 {[%emt 0:00:17]} h6 {[%emt 0:00:09]} 19. Rxe8 {[%emt 0:00:23]} Rxe8 {[%emt 0:00:04]} 20. Re1 {[%emt 0:00:05]} Rxe1+ {[%emt 0:00:18]} 21. Qxe1 {[%emt 0:00:01]} Kh7 {[%emt 0:00:01]} 22. Qe3 {[%emt 0:00:09]} Bg5 {[%emt 0:00:04]} 23. Qe5 {[%emt 0:00:06]} Qxe5 {[%emt 0:00:32]} 24. Bxe5 {[%emt 0:00:01]} Bc1 {[%emt 0:00:01]} 25. b4 {[%emt 0:00:11]} Bb2 {[%emt 0:00:22]} 26. f3 {[%emt 0:00:06]} Kg8 {[%emt 0:00:03]} 27. Kf2 {[%emt 0:00:02]} Kf7 {[%emt 0:00:01]} 28. Ke3 {[%emt 0:00:05]} Bc1+ {[%emt 0:00:03]} 29. Ke2 {[%emt 0:00:02]} g5 {[%emt 0:00:14]} 30. Bxc7 {[%emt 0:00:07]} Ke7 {[%emt 0:00:03]} 31. Be5 {[%emt 0:00:01]} Bc2 {[%emt 0:00:02]} 32. Bd4 {[%emt 0:00:02]} Bf4 {[%emt 0:00:02]} 33. g3 {[%emt 0:00:02]} Bd6 {[%emt 0:00:02]} 34. Nd3 {[%emt 0:00:03]} Bxa4 {[%emt 0:00:01]} 35. Nc5 {[%emt 0:00:02]} Bb5+ {[%emt 0:00:01]} 36. Kd2 {[%emt 0:00:01]} Bc7 {[%emt 0:00:03]} 37. Nd3 {[%emt 0:00:04]} Bb6 {[%emt 0:00:02]} 38. Bc5+ {[%emt 0:00:02]} Ke6 {[%emt 0:00:03]} 39. Bxb6 axb6 {[%emt 0:00:00]} 40. Nb2 {[%emt 0:00:06]} Kf5 {[%emt 0:00:02]} 41. Ke3 {[%emt 0:00:01]} Ke5 {[%emt 0:00:03]} 42. Nd3+ Bxd3 43. Kxd3 c5 44. bxc5 {[%emt 0:00:10]} bxc5 {[%emt 0:00:06]} 45. Ke3 {[%emt 0:00:01]} h5 {[%emt 0:00:02]} 46. f4+ {[%emt 0:00:01]} gxf4+ {[%emt 0:00:02]} 47. gxf4+ {[%emt 0:00:01]} Kf5 {[%emt 0:00:00]} 48. h3 {[%emt 0:00:01]} h4 {[%emt 0:00:05]} 49. Kf3 {[%emt 0:00:03]} d4 {[%emt 0:00:01]} 50. cxd4 {[%emt 0:00:02]} cxd4 {[%emt 0:00:01]} 51. Ke2 {[%emt 0:00:00]} Kxf4 {[%emt 0:00:02]} 52. Kd3 {[%emt 0:00:01]} Ke5 {[%emt 0:00:03]} 53. Ke2 {[%emt 0:00:02]} Ke4 {[%emt 0:00:01]} 54. Kd2 {[%emt 0:00:00]} d3 {[%emt 0:00:02]} 55. Kd1 {[%emt 0:00:07]} Ke3 {[%emt 0:00:03]} 56. Ke1 {[%emt 0:00:01]} Kf3 57. Kd2 Kg3 {[%emt 0:00:02]} 58. Kxd3 {[%emt 0:00:01]} Kxh3 {[%emt 0:00:01]} 59. Ke2 {[%emt 0:00:00]} Kg2 {[%emt 0:00:00]} 60. Ke1 {[%emt 0:00:00]} 0-1

[Event "3rd FIDE WCCC Blitz U12 2019"]
[Site "Minsk"]
[Date "2019.08.18"]
[Round "4.6"]
[White "Shakhaylo, Dmitriy"]
[Black "Burbach, Brunel Baron"]
[Result "0-1"]
[ECO "E58"]
[WhiteElo "1718"]
[BlackElo "1548"]
[Annotator "NA"]
[PlyCount "46"]
[EventDate "2019.08.18"]
[EventType "swiss"]
[EventCountry "BLR"]
[SourceTitle "playchess.com"]
[Source "ChessBase"]
[SourceQuality "1"]
[TimeControl "300+2"]

1. d4 {[%emt 0:00:00]} Nf6 {[%emt 0:00:00]} 2. c4 {[%emt 0:00:02]} e6 {[%emt 0:00:00]} 3. Nc3 {[%emt 0:00:01]} Bb4 {[%emt 0:00:00]} 4. e3 {[%emt 0:00:07]} O-O {[%emt 0:00:03]} 5. Nf3 {[%emt 0:00:03]} d5 {[%emt 0:00:06]} 6. Bd3 {[%emt 0:00:02]} c5 {[%emt 0:00:02]} 7. O-O {[%emt 0:00:11]} Nc6 {[%emt 0:00:03]} 8. a3 {[%emt 0:00:04]} Bxc3 {[%emt 0:00:05]} 9. bxc3 {[%emt 0:00:02]} b6 {[%emt 0:00:18]} 10. Qe2 {[%emt 0:00:17]} Bb7 {[%emt 0:00:22]} 11. Rd1 {[%emt 0:00:19]} dxc4 {[%emt 0:00:18]} 12. Bxc4 {[%emt 0:00:03]} Qe7 {[%emt 0:00:02]} 13. e4 {[%emt 0:00:23]} Na5 {[%emt 0:00:18]} 14. Bd3 {[%emt 0:00:02]} cxd4 {[%emt 0:00:24]} 15. cxd4 {[%emt 0:00:04]} Rfd8 {[%emt 0:00:30]} 16. Bc2 {[%emt 0:00:18]} h6 {[%emt 0:00:16]} 17. e5 {[%emt 0:00:07]} Nd5 {[%emt 0:00:07]} 18. Qd3 {[%emt 0:00:23]} f5 {[%emt 0:00:11]} 19. exf6 {[%emt 0:00:06]} Nxf6 {[%emt 0:00:01]} 20. Qg6 {[%emt 0:00:18]} Qf7 {[%emt 0:00:39]} 21. Qg3 {[%emt 0:00:10]} Kh8 {[%emt 0:00:07]} 22. Ne5 {[%emt 0:00:04]} Qh5 {[%emt 0:00:16]} 23. Bg6 {[%emt 0:00:12]} Qxd1# {[%emt 0:00:03]} 0-1

[Event "3rd FIDE WCCC Blitz U12 2019"]
[Site "Minsk"]
[Date "2019.08.18"]
[Round "5.1"]
[White "Chyndygyr, Tamerlan"]
[Black "Khubukshanov, Erdem"]
[Result "1/2-1/2"]
[ECO "D30"]
[WhiteElo "1984"]
[BlackElo "2257"]
[Annotator "NA"]
[PlyCount "30"]
[EventDate "2019.08.18"]
[EventType "swiss"]
[EventCountry "BLR"]
[SourceTitle "playchess.com"]
[Source "ChessBase"]
[SourceQuality "1"]
[TimeControl "300+2"]

1. d4 {[%emt 0:00:00]} d5 {[%emt 0:00:00]} 2. c4 {[%emt 0:00:01]} e6 {[%emt 0:00:00]} 3. Nf3 {[%emt 0:00:03]} c6 {[%emt 0:00:00]} 4. Qc2 {[%emt 0:00:02]} dxc4 {[%emt 0:00:06]} 5. Qxc4 {[%emt 0:00:02]} b5 {[%emt 0:00:01]} 6. Qc2 {[%emt 0:00:01]} Bb7 {[%emt 0:00:01]} 7. e4 {[%emt 0:00:05]} Nd7 {[%emt 0:00:01]} 8. Bd3 {[%emt 0:00:03]} a6 {[%emt 0:00:13]} 9. Be3 {[%emt 0:00:03]} Rc8 {[%emt 0:00:04]} 10. O-O {[%emt 0:01:08]} c5 {[%emt 0:00:03]} 11. Qe2 {[%emt 0:00:08]} Ngf6 {[%emt 0:00:07]} 12. d5 {[%emt 0:00:46]} c4 {[%emt 0:00:29]} 13. Bc2 {[%emt 0:00:08]} e5 {[%emt 0:00:01]} 14. Nfd2 {[%emt 0:00:30]} Bd6 {[%emt 0:00:28]} 15. a4 {[%emt 0:00:01]} Bb4 {[%emt 0:01:52]} 1/2-1/2

[Event "3rd FIDE WCCC Blitz U12 2019"]
[Site "Minsk"]
[Date "2019.08.18"]
[Round "5.2"]
[White "Strybuk, Artsiom I"]
[Black "Zubar, Volodymyr"]
[Result "1/2-1/2"]
[ECO "D79"]
[WhiteElo "2200"]
[BlackElo "1748"]
[Annotator "NA"]
[PlyCount "195"]
[EventDate "2019.08.18"]
[EventType "swiss"]
[EventCountry "BLR"]
[SourceTitle "playchess.com"]
[Source "ChessBase"]
[SourceQuality "1"]
[TimeControl "300+2"]

1. d4 {[%emt 0:00:00]} Nf6 {[%emt 0:00:01]} 2. c4 {[%emt 0:00:00]} g6 {[%emt 0:00:01]} 3. Nf3 {[%emt 0:00:01]} Bg7 {[%emt 0:00:02]} 4. g3 {[%emt 0:00:01]} c6 {[%emt 0:00:02]} 5. Bg2 {[%emt 0:00:02]} d5 {[%emt 0:00:02]} 6. O-O {[%emt 0:00:03]} O-O {[%emt 0:00:02]} 7. cxd5 {[%emt 0:00:01]} cxd5 {[%emt 0:00:03]} 8. Ne5 {[%emt 0:00:02]} b6 {[%emt 0:00:42]} 9. Nc3 {[%emt 0:00:17]} Bb7 {[%emt 0:00:01]} 10. Qa4 {[%emt 0:00:46]} e6 {[%emt 0:00:17]} 11. Bg5 {[%emt 0:00:27]} a6 {[%emt 0:00:41]} 12. Rfc1 {[%emt 0:00:22]} b5 {[%emt 0:00:05]} 13. Qb3 {[%emt 0:00:10]} h6 {[%emt 0:00:35]} 14. Bxf6 {[%emt 0:00:11]} Bxf6 {[%emt 0:00:04]} 15. a4 {[%emt 0:00:01]} Bxe5 {[%emt 0:01:17]} 16. dxe5 {[%emt 0:00:02]} Nd7 {[%emt 0:00:01]} 17. axb5 {[%emt 0:00:44]} axb5 {[%emt 0:00:05]} 18. Qxb5 {[%emt 0:00:04]} Rxa1 {[%emt 0:00:31]} 19. Rxa1 {[%emt 0:00:01]} Ba8 {[%emt 0:00:04]} 20. f4 {[%emt 0:00:27]} Qb6+ {[%emt 0:00:05]} 21. Qxb6 {[%emt 0:00:02]} Nxb6 {[%emt 0:00:01]} 22. Kf2 {[%emt 0:00:26]} Rb8 {[%emt 0:00:03]} 23. b3 {[%emt 0:00:17]} Nd7 {[%emt 0:00:13]} 24. b4 {[%emt 0:00:14]} Bc6 {[%emt 0:00:10]} 25. Rb1 {[%emt 0:00:05]} Nb6 {[%emt 0:00:03]} 26. e3 {[%emt 0:00:22]} Nc4 {[%emt 0:00:03]} 27. Bf1 {[%emt 0:00:06]} Nd2 {[%emt 0:00:06]} 28. Rb2 {[%emt 0:00:02]} Nxf1 {[%emt 0:00:02]} 29. Kxf1 {[%emt 0:00:01]} Bb5+ {[%emt 0:00:01]} 30. Ke1 {[%emt 0:00:07]} Kf8 {[%emt 0:00:04]} 31. Kd2 {[%emt 0:00:01]} Ke7 {[%emt 0:00:01]} 32. Nxb5 {[%emt 0:00:08]} Rxb5 {[%emt 0:00:01]} 33. Kc3 {[%emt 0:00:00]} Kd7 {[%emt 0:00:03]} 34. Ra2 {[%emt 0:00:01]} Rb7 {[%emt 0:00:03]} 35. Ra8 {[%emt 0:00:07]} Kc6 {[%emt 0:00:05]} 36. Rc8+ {[%emt 0:00:06]} Kb5 {[%emt 0:00:04]} 37. Kb3 {[%emt 0:00:03]} h5 {[%emt 0:00:02]} 38. h4 {[%emt 0:00:06]} Kb6 {[%emt 0:00:02]} 39. Kc3 {[%emt 0:00:09]} Kb5 {[%emt 0:00:03]} 40. Kb3 {[%emt 0:00:03]} Kb6 {[%emt 0:00:01]} 41. Rf8 {[%emt 0:00:05]} Kb5 {[%emt 0:00:03]} 42. Rd8 {[%emt 0:00:03]} Kb6 {[%emt 0:00:06]} 43. Ra8 {[%emt 0:00:01]} Kb5 {[%emt 0:00:03]} 44. Ra5+ {[%emt 0:00:01]} Kb6 {[%emt 0:00:01]} 45. Rc5 {[%emt 0:00:01]} Ra7 {[%emt 0:00:04]} 46. Rc1 {[%emt 0:00:05]} Rb7 {[%emt 0:00:02]} 47. Rg1 {[%emt 0:00:04]} Rb8 {[%emt 0:00:03]} 48. g4 {[%emt 0:00:02]} hxg4 {[%emt 0:00:01]} 49. Rxg4 {[%emt 0:00:01]} Rh8 {[%emt 0:00:01]} 50. Ka4 {[%emt 0:00:02]} Ra8+ {[%emt 0:00:01]} 51. Kb3 {[%emt 0:00:01]} Rh8 {[%emt 0:00:02]} 52. Kc3 {[%emt 0:00:04]} Kb5 {[%emt 0:00:03]} 53. Kb3 {[%emt 0:00:03]} Kb6 {[%emt 0:00:04]} 54. Kc3 {[%emt 0:00:02]} Kb5 {[%emt 0:00:01]} 55. Kd3 {[%emt 0:00:01]} Rh5 {[%emt 0:00:09]} 56. Kc3 {[%emt 0:00:04]} Rh8 {[%emt 0:00:01]} 57. Kb3 {[%emt 0:00:03]} Kb6 58. Kb2 {[%emt 0:00:01]} Kb5 59. Kc3 Kb6 {[%emt 0:00:09]} 60. Kb3 {[%emt 0:00:03]} Kb5 {[%emt 0:00:01]} 61. Kc2 {[%emt 0:00:04]} Kb6 {[%emt 0:00:02]} 62. Kd3 {[%emt 0:00:01]} Kb5 {[%emt 0:00:00]} 63. Kc3 {[%emt 0:00:00]} Kb6 {[%emt 0:00:03]} 64. Kb3 {[%emt 0:00:03]} Kb5 {[%emt 0:00:00]} 65. Ka3 {[%emt 0:00:01]} Ra8+ {[%emt 0:00:04]} 66. Kb3 {[%emt 0:00:01]} Rh8 {[%emt 0:00:00]} 67. Kc3 {[%emt 0:00:03]} Kb6 {[%emt 0:00:03]} 68. Kb3 {[%emt 0:00:01]} Kb5 {[%emt 0:00:01]} 69. Kb2 {[%emt 0:00:01]} Kb6 {[%emt 0:00:01]} 70. Ka3 {[%emt 0:00:01]} Kb5 {[%emt 0:00:01]} 71. Kb3 {[%emt 0:00:00]} Kb6 72. Kc3 {[%emt 0:00:07]} Kb5 {[%emt 0:00:01]} 73. Kd3 {[%emt 0:00:02]} Rh5 {[%emt 0:00:03]} 74. Kc3 {[%emt 0:00:03]} Rh8 {[%emt 0:00:01]} 75. Kb3 {[%emt 0:00:02]} Kb6 {[%emt 0:00:02]} 76. Ka4 {[%emt 0:00:00]} Ra8+ {[%emt 0:00:01]} 77. Kb3 {[%emt 0:00:01]} Rh8 {[%emt 0:00:00]} 78. Kc3 {[%emt 0:00:00]} Kb5 {[%emt 0:00:02]} 79. Kd3 {[%emt 0:00:06]} Rh5 {[%emt 0:00:01]} 80. Kc3 {[%emt 0:00:02]} Rh8 {[%emt 0:00:02]} 81. Kd2 {[%emt 0:00:04]} Rh5 {[%emt 0:00:04]} 82. Kc3 {[%emt 0:00:01]} Rh8 {[%emt 0:00:01]} 83. Kb3 {[%emt 0:00:01]} Kb6 {[%emt 0:00:01]} 84. Kb2 {[%emt 0:00:01]} Kb5 85. Kc3 Kb6 {[%emt 0:00:02]} 86. Kd3 {[%emt 0:00:01]} Kb5 {[%emt 0:00:01]} 87. Kc2 {[%emt 0:00:01]} Kb6 {[%emt 0:00:11]} 88. Kc3 {[%emt 0:00:01]} Kb5 {[%emt 0:00:00]} 89. Kd4 {[%emt 0:00:04]} Rc8 {[%emt 0:00:16]} 90. Rg1 {[%emt 0:00:05]} Rh8 {[%emt 0:00:01]} 91. Rc1 {[%emt 0:00:03]} Kxb4 {[%emt 0:00:03]} 92. Rb1+ {[%emt 0:00:01]} Ka4 {[%emt 0:00:02]} 93. Rb7 {[%emt 0:00:01]} Rf8 {[%emt 0:00:03]} 94. Kc5 {[%emt 0:00:01]} Rc8+ {[%emt 0:00:00]} 95. Kd6 {[%emt 0:00:03]} Rf8 {[%emt 0:00:05]} 96. Ke7 {[%emt 0:00:01]} Rh8 {[%emt 0:00:02]} 97. Kf6 {[%emt 0:00:03]} Rxh4 {[%emt 0:00:03]} 98. Rxf7 {[%emt 0:00:01]} 1/2-1/2

[Event "3rd FIDE WCCC Blitz U12 2019"]
[Site "Minsk"]
[Date "2019.08.18"]
[Round "5.3"]
[White "Kolesov, Gordey"]
[Black "Berin, Artem"]
[Result "1/2-1/2"]
[ECO "D15"]
[WhiteElo "1761"]
[BlackElo "1734"]
[Annotator "NA"]
[PlyCount "168"]
[EventDate "2019.08.18"]
[EventType "swiss"]
[EventCountry "BLR"]
[SourceTitle "playchess.com"]
[Source "ChessBase"]
[SourceQuality "1"]
[TimeControl "300+2"]

1. d4 {[%emt 0:00:00]} Nf6 {[%emt 0:00:00]} 2. Nf3 {[%emt 0:00:00]} d5 {[%emt 0:00:02]} 3. c4 c6 4. Nc3 {[%emt 0:00:02]} a6 {[%emt 0:00:01]} 5. cxd5 {[%emt 0:00:07]} cxd5 {[%emt 0:00:01]} 6. Bf4 {[%emt 0:00:06]} Nc6 {[%emt 0:00:07]} 7. e3 {[%emt 0:00:05]} e6 {[%emt 0:00:01]} 8. a3 {[%emt 0:00:04]} Bd6 {[%emt 0:00:03]} 9. Bxd6 {[%emt 0:00:09]} Qxd6 {[%emt 0:00:01]} 10. Bd3 {[%emt 0:00:01]} b5 {[%emt 0:00:05]} 11. O-O {[%emt 0:00:06]} O-O {[%emt 0:00:02]} 12. Rc1 {[%emt 0:00:04]} Bb7 {[%emt 0:00:02]} 13. Qe2 {[%emt 0:00:26]} Rac8 {[%emt 0:00:04]} 14. Nd2 {[%emt 0:00:05]} Na5 {[%emt 0:00:25]} 15. f4 {[%emt 0:01:05]} Nc4 {[%emt 0:00:36]} 16. Nb3 {[%emt 0:00:01]} Ba8 {[%emt 0:00:17]} 17. Na2 {[%emt 0:00:13]} Nd7 {[%emt 0:00:31]} 18. Rc2 {[%emt 0:00:48]} f5 {[%emt 0:00:12]} 19. Rfc1 {[%emt 0:00:11]} Bb7 {[%emt 0:00:22]} 20. Nd2 {[%emt 0:00:06]} Ncb6 {[%emt 0:00:20]} 21. Nb3 {[%emt 0:00:16]} Nc4 {[%emt 0:00:02]} 22. Nd2 {[%emt 0:00:01]} Ncb6 {[%emt 0:00:01]} 23. Nf3 {[%emt 0:00:05]} Nc4 {[%emt 0:00:09]} 24. Qf2 {[%emt 0:00:21]} a5 {[%emt 0:00:08]} 25. Re1 {[%emt 0:00:05]} Nf6 {[%emt 0:00:19]} 26. Ne5 {[%emt 0:00:10]} Ne4 {[%emt 0:00:05]} 27. Bxe4 {[%emt 0:00:04]} fxe4 {[%emt 0:00:08]} 28. Nxc4 {[%emt 0:00:09]} Rxc4 {[%emt 0:00:08]} 29. Rxc4 {[%emt 0:00:04]} bxc4 {[%emt 0:00:01]} 30. Qd2 {[%emt 0:00:00]} Qb6 {[%emt 0:00:04]} 31. Nc3 {[%emt 0:00:04]} Bc6 {[%emt 0:00:01]} 32. Qe2 {[%emt 0:00:22]} Rb8 {[%emt 0:00:06]} 33. Rb1 {[%emt 0:00:03]} Be8 {[%emt 0:00:06]} 34. Qg4 {[%emt 0:00:02]} Qd6 {[%emt 0:00:17]} 35. f5 {[%emt 0:00:23]} exf5 {[%emt 0:00:14]} 36. Qxf5 {[%emt 0:00:01]} Bf7 {[%emt 0:00:08]} 37. Rf1 {[%emt 0:00:12]} Qe6 {[%emt 0:00:10]} 38. Qf4 {[%emt 0:00:06]} Rxb2 {[%emt 0:00:21]} 39. Qc7 {[%emt 0:00:07]} Rb3 {[%emt 0:00:20]} 40. Qd8+ {[%emt 0:00:01]} Qe8 41. Qxa5 {[%emt 0:00:02]} h6 {[%emt 0:00:05]} 42. Nxd5 {[%emt 0:00:01]} Qd7 {[%emt 0:00:06]} 43. Qa8+ {[%emt 0:00:01]} Kh7 {[%emt 0:00:02]} 44. Nf4 {[%emt 0:00:03]} Rxe3 45. d5 {[%emt 0:00:03]} c3 {[%emt 0:00:05]} 46. Qa5 {[%emt 0:00:03]} c2 {[%emt 0:00:03]} 47. Qc5 Rb3 {[%emt 0:00:07]} 48. Qxc2 {[%emt 0:00:02]} Rxa3 {[%emt 0:00:01]} 49. Qxe4+ {[%emt 0:00:00]} Kg8 {[%emt 0:00:00]} 50. Qe5 {[%emt 0:00:00]} Ra8 {[%emt 0:00:04]} 51. Rc1 {[%emt 0:00:00]} Re8 {[%emt 0:00:01]} 52. Qd4 {[%emt 0:00:00]} g5 {[%emt 0:00:04]} 53. Nh3 {[%emt 0:00:00]} Qxd5 {[%emt 0:00:01]} 54. Qf6 {[%emt 0:00:00]} Qe6 {[%emt 0:00:03]} 55. Qxe6 {[%emt 0:00:09]} Rxe6 {[%emt 0:00:01]} 56. Rc8+ {[%emt 0:00:03]} Kg7 {[%emt 0:00:00]} 57. Kf2 {[%emt 0:00:08]} Re7 {[%emt 0:00:02]} 58. Ng1 {[%emt 0:00:01]} Be6 {[%emt 0:00:02]} 59. Rc5 {[%emt 0:00:01]} Bg4 {[%emt 0:00:04]} 60. h3 {[%emt 0:00:02]} Bh5 {[%emt 0:00:01]} 61. g4 {[%emt 0:00:03]} Bg6 {[%emt 0:00:04]} 62. Nf3 {[%emt 0:00:01]} Rf7 {[%emt 0:00:01]} 63. Kg3 {[%emt 0:00:02]} Re7 {[%emt 0:00:02]} 64. Rb5 {[%emt 0:00:03]} Be4 {[%emt 0:00:01]} 65. Nd4 {[%emt 0:00:01]} Bg6 {[%emt 0:00:02]} 66. Rb6 {[%emt 0:00:01]} Be4 {[%emt 0:00:02]} 67. Ne6+ {[%emt 0:00:02]} Kf7 {[%emt 0:00:02]} 68. Nd8+ {[%emt 0:00:04]} Kg7 {[%emt 0:00:01]} 69. Ne6+ {[%emt 0:00:02]} Kf7 {[%emt 0:00:00]} 70. Nd4 {[%emt 0:00:02]} Bg6 {[%emt 0:00:04]} 71. Rb5 {[%emt 0:00:04]} Kg7 {[%emt 0:00:01]} 72. Nc6 {[%emt 0:00:01]} Rc7 {[%emt 0:00:02]} 73. Ne5 {[%emt 0:00:02]} Re7 {[%emt 0:00:01]} 74. Rc5 {[%emt 0:00:01]} Be4 {[%emt 0:00:02]} 75. Nc4 {[%emt 0:00:02]} Bg6 {[%emt 0:00:01]} 76. Kf2 {[%emt 0:00:02]} Rf7+ {[%emt 0:00:05]} 77. Kg3 {[%emt 0:00:01]} Re7 {[%emt 0:00:00]} 78. Ne5 {[%emt 0:00:02]} Be4 {[%emt 0:00:02]} 79. Nf3 {[%emt 0:00:02]} Bxf3 80. Kxf3 {[%emt 0:00:01]} Kf7 {[%emt 0:00:03]} 81. Rc6 {[%emt 0:00:01]} Kg7 {[%emt 0:00:01]} 82. Rd6 {[%emt 0:00:02]} Kh7 {[%emt 0:00:02]} 83. Rf6 {[%emt 0:00:05]} Kg7 {[%emt 0:00:01]} 84. Rc6 {[%emt 0:00:00]} Kh7 {[%emt 0:00:00]} 1/2-1/2

[Event "3rd FIDE WCCC Blitz U12 2019"]
[Site "Minsk"]
[Date "2019.08.18"]
[Round "5.4"]
[White "Nemsadze, Daviti"]
[Black "Navumenka, Mikhei"]
[Result "0-1"]
[ECO "A22"]
[WhiteElo "1773"]
[BlackElo "2148"]
[Annotator "NA"]
[PlyCount "124"]
[EventDate "2019.08.18"]
[EventType "swiss"]
[EventCountry "BLR"]
[SourceTitle "playchess.com"]
[Source "ChessBase"]
[SourceQuality "1"]
[TimeControl "300+2"]

1. c4 {[%emt 0:00:00]} e5 {[%emt 0:00:00]} 2. Nc3 {[%emt 0:00:00]} Nf6 {[%emt 0:00:00]} 3. g3 {[%emt 0:00:01]} Nc6 {[%emt 0:00:00]} 4. Bg2 {[%emt 0:00:01]} Bb4 {[%emt 0:00:02]} 5. Nd5 {[%emt 0:00:01]} O-O {[%emt 0:00:02]} 6. Nxb4 Nxb4 {[%emt 0:00:01]} 7. Nf3 {[%emt 0:00:15]} e4 {[%emt 0:00:04]} 8. Nd4 {[%emt 0:00:02]} d5 {[%emt 0:00:03]} 9. cxd5 {[%emt 0:00:13]} Qxd5 {[%emt 0:00:21]} 10. Nc2 {[%emt 0:00:16]} Nxc2+ {[%emt 0:00:15]} 11. Qxc2 {[%emt 0:00:02]} Bg4 {[%emt 0:00:02]} 12. h3 {[%emt 0:00:05]} Bh5 {[%emt 0:00:02]} 13. g4 {[%emt 0:00:02]} Bg6 {[%emt 0:00:01]} 14. O-O {[%emt 0:00:16]} h5 {[%emt 0:00:03]} 15. gxh5 {[%emt 0:00:19]} Nxh5 {[%emt 0:00:32]} 16. d3 {[%emt 0:00:20]} exd3 {[%emt 0:00:48]} 17. Bxd5 {[%emt 0:00:12]} dxc2 {[%emt 0:00:01]} 18. Be3 {[%emt 0:00:08]} Nf6 {[%emt 0:00:10]} 19. Bb3 {[%emt 0:00:05]} Rad8 {[%emt 0:00:20]} 20. Rac1 {[%emt 0:00:16]} Nd5 {[%emt 0:00:02]} 21. Bd2 {[%emt 0:00:02]} Bf5 {[%emt 0:00:23]} 22. Kh2 {[%emt 0:00:23]} Rfe8 {[%emt 0:00:07]} 23. e3 {[%emt 0:00:23]} Nf4 {[%emt 0:00:22]} 24. Bxc2 {[%emt 0:00:08]} Rxd2 {[%emt 0:00:26]} 25. Bxf5 {[%emt 0:00:02]} Rxe3 {[%emt 0:00:03]} 26. Rxc7 {[%emt 0:00:11]} g6 {[%emt 0:00:02]} 27. Bg4 {[%emt 0:00:26]} Rxb2 {[%emt 0:00:14]} 28. Rxb7 {[%emt 0:00:29]} Rxh3+ {[%emt 0:00:08]} 29. Bxh3 {[%emt 0:00:00]} Rxb7 {[%emt 0:00:02]} 30. Bc8 {[%emt 0:00:22]} Rb2 {[%emt 0:00:06]} 31. a4 {[%emt 0:00:02]} Ra2 {[%emt 0:00:02]} 32. Bd7 {[%emt 0:00:01]} Nd3 {[%emt 0:00:04]} 33. Rb1 {[%emt 0:00:16]} Nxf2 {[%emt 0:00:15]} 34. Rb8+ {[%emt 0:00:08]} Kg7 {[%emt 0:00:02]} 35. Rb7 {[%emt 0:00:01]} Ng4+ {[%emt 0:00:04]} 36. Kg3 {[%emt 0:00:03]} Ne5 {[%emt 0:00:01]} 37. Be8 {[%emt 0:00:10]} Kf8 {[%emt 0:00:09]} 38. Bb5 {[%emt 0:00:15]} a6 {[%emt 0:00:04]} 39. Rb8+ {[%emt 0:00:01]} Kg7 {[%emt 0:00:02]} 40. Be8 {[%emt 0:00:01]} g5 {[%emt 0:00:07]} 41. Rb6 {[%emt 0:00:01]} Kf8 {[%emt 0:00:05]} 42. Rb8 {[%emt 0:00:02]} Ke7 {[%emt 0:00:02]} 43. Ra8 {[%emt 0:00:11]} Ra3+ {[%emt 0:00:02]} 44. Kg2 {[%emt 0:00:02]} g4 {[%emt 0:00:09]} 45. Kf2 {[%emt 0:00:04]} f5 {[%emt 0:00:05]} 46. Bh5 {[%emt 0:00:01]} Rxa4 {[%emt 0:00:09]} 47. Re8+ {[%emt 0:00:01]} Kf6 {[%emt 0:00:02]} 48. Kg3 {[%emt 0:00:05]} Ng6 {[%emt 0:00:07]} 49. Rb8 {[%emt 0:00:03]} Ra3+ {[%emt 0:00:02]} 50. Kf2 {[%emt 0:00:01]} Kg5 {[%emt 0:00:01]} 51. Bxg6 {[%emt 0:00:02]} Kxg6 {[%emt 0:00:01]} 52. Rb6+ {[%emt 0:00:01]} Kg5 {[%emt 0:00:01]} 53. Kg2 {[%emt 0:00:01]} a5 {[%emt 0:00:01]} 54. Ra6 {[%emt 0:00:01]} Kf4 {[%emt 0:00:01]} 55. Kf2 Ra2+ 56. Ke1 {[%emt 0:00:02]} Kf3 {[%emt 0:00:02]} 57. Rf6 {[%emt 0:00:02]} f4 {[%emt 0:00:00]} 58. Rc6 {[%emt 0:00:01]} Ra1+ {[%emt 0:00:01]} 59. Kd2 {[%emt 0:00:01]} g3 {[%emt 0:00:01]} 60. Rc3+ Kf2 {[%emt 0:00:01]} 61. Rc2 {[%emt 0:00:02]} g2 62. Kd3+ Kf3 {[%emt 0:00:04] Ke4+} 0-1